[Event "Early-Titled-Tuesday-Blitz-February-20-2024"]
[Site "Chess.com"]
[Date "2024.02.20"]
[Round "7"]
[White "Al_Shima"]
[Black "Alenzer"]
[Result "1/2-1/2"]
[WhiteElo "2381"]
[BlackElo "2156"]
[TimeControl "180+1"]
[EndTime "9:20:27 PST"]
[Termination "Game drawn by repetition"]

1. e4 {[%clk 0:03:00.9]} 1... c5 {[%clk 0:02:53.6]} 2. Nf3 {[%clk 0:02:56.6]}
2... e6 {[%clk 0:02:53.4]} 3. c3 {[%clk 0:02:55.9]} 3... d5 {[%clk 0:02:52]} 4.
exd5 {[%clk 0:02:56.8]} 4... exd5 {[%clk 0:02:52]} 5. d4 {[%clk 0:02:56.2]} 5...
Nf6 {[%clk 0:02:52.4]} 6. Be3 {[%clk 0:02:55.2]} 6... cxd4 {[%clk 0:02:31.9]} 7.
Nxd4 {[%clk 0:02:52.2]} 7... Nc6 {[%clk 0:02:31.2]} 8. Be2 {[%clk 0:02:49.7]}
8... Bd6 {[%clk 0:02:30.6]} 9. O-O {[%clk 0:02:47.9]} 9... O-O {[%clk
0:02:30.3]} 10. Nd2 {[%clk 0:02:45.4]} 10... Re8 {[%clk 0:02:28.1]} 11. Nxc6
{[%clk 0:02:41.9]} 11... bxc6 {[%clk 0:02:27.6]} 12. Nf3 {[%clk 0:02:42.4]}
12... Ne4 {[%clk 0:02:26.4]} 13. h3 {[%clk 0:02:39.7]} 13... Ng3 {[%clk
0:02:14]} 14. Re1 {[%clk 0:02:35.6]} 14... Nxe2+ {[%clk 0:02:12.7]} 15. Qxe2
{[%clk 0:02:34.2]} 15... a5 {[%clk 0:02:06.7]} 16. Qd2 {[%clk 0:02:33.9]} 16...
Qf6 {[%clk 0:01:57.4]} 17. Bg5 {[%clk 0:02:23.5]} 17... Rxe1+ {[%clk 0:01:39.2]}
18. Rxe1 {[%clk 0:02:24.4]} 18... Qg6 {[%clk 0:01:23.2]} 19. Re8+ {[%clk
0:02:13]} 19... Bf8 {[%clk 0:01:21.3]} 20. Qe3 {[%clk 0:02:04.3]} 20... h6
{[%clk 0:00:35.7]} 21. Be7 {[%clk 0:01:59]} 21... Bxh3 {[%clk 0:00:32.8]} 22.
Nh4 {[%clk 0:01:53.1]} 22... Qb1+ {[%clk 0:00:32]} 23. Kh2 {[%clk 0:01:42.1]}
23... Rxe8 {[%clk 0:00:31.8]} 24. Qxh3 {[%clk 0:01:38.5]} 24... Bxe7 {[%clk
0:00:29.9]} 25. Qd7 {[%clk 0:01:36.1]} 25... Kf8 {[%clk 0:00:25.6]} 26. Nf5
{[%clk 0:01:29.3]} 26... Qe4 {[%clk 0:00:21.7]} 27. Nd4 {[%clk 0:01:20.3]} 27...
Qf4+ {[%clk 0:00:17.8]} 28. Kg1 {[%clk 0:01:19.9]} 28... Bd6 {[%clk 0:00:15.7]}
29. g3 {[%clk 0:01:19.7]} 29... Re1+ {[%clk 0:00:15.1]} 30. Kg2 {[%clk
0:01:19.7]} 30... Qe4+ {[%clk 0:00:15.5]} 31. Nf3 {[%clk 0:01:19.9]} 31... Re2
{[%clk 0:00:12.5]} 32. Qxd6+ {[%clk 0:01:18.3]} 32... Qe7 {[%clk 0:00:12.7]} 33.
Qxc6 {[%clk 0:01:17.3]} 33... Rxb2 {[%clk 0:00:10.3]} 34. Qc8+ {[%clk
0:01:10.9]} 34... Qe8 {[%clk 0:00:10.4]} 35. Qc5+ {[%clk 0:01:11.2]} 35... Kg8
{[%clk 0:00:10.6]} 36. Qxd5 {[%clk 0:01:02.1]} 36... Qe6 {[%clk 0:00:10.9]} 37.
Qd8+ {[%clk 0:00:57.9]} 37... Kh7 {[%clk 0:00:11]} 38. Qxa5 {[%clk 0:00:49.6]}
38... Rxa2 {[%clk 0:00:11.1]} 39. Qh5 {[%clk 0:00:46.9]} 39... g6 {[%clk
0:00:11]} 40. Ng5+ {[%clk 0:00:43.7]} 40... Kg8 {[%clk 0:00:11.4]} 41. Qxh6
{[%clk 0:00:38.3]} 41... Qd5+ {[%clk 0:00:11]} 42. Nf3 {[%clk 0:00:31.4]} 42...
Qc5 {[%clk 0:00:08.4]} 43. Nd4 {[%clk 0:00:27.4]} 43... Qxc3 {[%clk 0:00:07.2]}
44. Qf4 {[%clk 0:00:20.9]} 44... Qc5 {[%clk 0:00:06]} 45. Qb8+ {[%clk
0:00:09.6]} 45... Kh7 {[%clk 0:00:05.2]} 46. Qf4 {[%clk 0:00:10.5]} 46... Qd5+
{[%clk 0:00:05.3]} 47. Nf3 {[%clk 0:00:10.9]} 47... Ra3 {[%clk 0:00:05.3]} 48.
g4 {[%clk 0:00:07.5]} 48... Kg7 {[%clk 0:00:05.3]} 49. Kg3 {[%clk 0:00:05.4]}
49... Qd3 {[%clk 0:00:05.4]} 50. Qe5+ {[%clk 0:00:03.7]} 50... Kh7 {[%clk
0:00:05.8]} 51. Qf4 {[%clk 0:00:03.8]} 51... Kg7 {[%clk 0:00:05.6]} 52. Qe5+
{[%clk 0:00:04]} 52... Kg8 {[%clk 0:00:06.1]} 53. Qe8+ {[%clk 0:00:03]} 53...
Kg7 {[%clk 0:00:05.7]} 54. Qe5+ {[%clk 0:00:03.7]} 1/2-1/2

[Event "Early-Titled-Tuesday-Blitz-February-20-2024"]
[Site "Chess.com"]
[Date "2024.02.20"]
[Round "7"]
[White "Maxfan2008"]
[Black "KetiTsatsalashvili"]
[Result "0-1"]
[WhiteElo "2554"]
[BlackElo "2456"]
[TimeControl "180+1"]
[EndTime "9:20:29 PST"]
[Termination "KetiTsatsalashvili won on time"]

1. d4 {[%clk 0:02:40.6]} 1... Nf6 {[%clk 0:02:59]} 2. c4 {[%clk 0:02:40.3]} 2...
e6 {[%clk 0:02:55.2]} 3. Nc3 {[%clk 0:02:39.9]} 3... d5 {[%clk 0:02:54.8]} 4.
cxd5 {[%clk 0:02:38.8]} 4... exd5 {[%clk 0:02:55.1]} 5. Bg5 {[%clk 0:02:36.6]}
5... c6 {[%clk 0:02:54.3]} 6. e3 {[%clk 0:02:36.1]} 6... h6 {[%clk 0:02:50.8]}
7. Bh4 {[%clk 0:02:34.4]} 7... Be7 {[%clk 0:02:45.3]} 8. Bd3 {[%clk 0:02:33.2]}
8... Be6 {[%clk 0:02:38.8]} 9. Nf3 {[%clk 0:02:31.4]} 9... Nbd7 {[%clk 0:02:39]}
10. Ne5 {[%clk 0:02:28.8]} 10... Nxe5 {[%clk 0:02:35.8]} 11. dxe5 {[%clk
0:02:28.5]} 11... Nd7 {[%clk 0:02:35.9]} 12. Bxe7 {[%clk 0:02:26.8]} 12... Qxe7
{[%clk 0:02:35.5]} 13. f4 {[%clk 0:02:27]} 13... Qc5 {[%clk 0:02:04.3]} 14. f5
{[%clk 0:02:02.3]} 14... Nxe5 {[%clk 0:01:49]} 15. fxe6 {[%clk 0:01:50.8]} 15...
Qxe3+ {[%clk 0:01:46.8]} 16. Be2 {[%clk 0:01:44.6]} 16... fxe6 {[%clk
0:01:45.3]} 17. Qd2 {[%clk 0:01:41.2]} 17... Qb6 {[%clk 0:01:29.8]} 18. O-O-O
{[%clk 0:01:33.7]} 18... O-O-O {[%clk 0:01:26.9]} 19. Rhe1 {[%clk 0:01:27.1]}
19... Rhf8 {[%clk 0:01:10.6]} 20. Bf1 {[%clk 0:01:12.5]} 20... Rf2 {[%clk
0:00:52.7]} 21. Na4 {[%clk 0:00:25.1]} 21... Rxd2 {[%clk 0:00:25.5]} 22. Nxb6+
{[%clk 0:00:24.8]} 22... axb6 {[%clk 0:00:26.3]} 23. Rxd2 {[%clk 0:00:24.7]}
23... Ng4 {[%clk 0:00:22.3]} 24. h3 {[%clk 0:00:23.4]} 24... Nf6 {[%clk
0:00:21.6]} 25. Rxe6 {[%clk 0:00:22.4]} 25... Ne4 {[%clk 0:00:21.5]} 26. Rd1
{[%clk 0:00:19.2]} 26... Rf8 {[%clk 0:00:19.1]} 27. Bd3 {[%clk 0:00:14.9]} 27...
Nc5 {[%clk 0:00:14.5]} 28. Re7 {[%clk 0:00:13.8]} 28... g5 {[%clk 0:00:12.8]}
29. Rh7 {[%clk 0:00:12.9]} 29... Rf6 {[%clk 0:00:12.1]} 30. Bc2 {[%clk
0:00:12.6]} 30... b5 {[%clk 0:00:10.4]} 31. Re1 {[%clk 0:00:12]} 31... Kb8
{[%clk 0:00:10.7]} 32. Ree7 {[%clk 0:00:10.6]} 32... Rf1+ {[%clk 0:00:09]} 33.
Kd2 {[%clk 0:00:10.7]} 33... Rf2+ {[%clk 0:00:08.8]} 34. Kc3 {[%clk 0:00:10.6]}
34... b4+ {[%clk 0:00:08.4]} 35. Kxb4 {[%clk 0:00:07.4]} 35... Rxc2 {[%clk
0:00:08.6]} 36. b3 {[%clk 0:00:07]} 36... Ka7 {[%clk 0:00:07.7]} 37. Rxh6 {[%clk
0:00:06.3]} 37... Kb6 {[%clk 0:00:07.8]} 38. Rhh7 {[%clk 0:00:06.1]} 38... Rxa2
{[%clk 0:00:07.3]} 39. Kc3 {[%clk 0:00:05.8]} 39... Ra3 {[%clk 0:00:05.3]} 40.
Kd4 {[%clk 0:00:05.8]} 40... Rxb3 {[%clk 0:00:05.2]} 41. g4 {[%clk 0:00:05.3]}
41... Rd3+ {[%clk 0:00:05]} 42. Ke5 {[%clk 0:00:05.3]} 42... Rf3 {[%clk
0:00:05]} 43. Kd6 {[%clk 0:00:05.3]} 43... d4 {[%clk 0:00:05]} 44. Re1 {[%clk
0:00:04.3]} 44... d3 {[%clk 0:00:05.1]} 45. Rb1+ {[%clk 0:00:04.3]} 45... Nb3
{[%clk 0:00:02.3]} 46. Rxb3+ {[%clk 0:00:04.4]} 46... Ka6 {[%clk 0:00:02.8]} 47.
Rhxb7 {[%clk 0:00:04.4]} 47... d2 {[%clk 0:00:02.5]} 48. R7b6+ {[%clk
0:00:02.4]} 48... Ka7 {[%clk 0:00:02.3]} 49. Rxf3 {[%clk 0:00:02.8]} 49... d1=Q+
{[%clk 0:00:02.2]} 0-1

[Event "Early-Titled-Tuesday-Blitz-February-20-2024"]
[Site "Chess.com"]
[Date "2024.02.20"]
[Round "7"]
[White "DonMicheleCorleone"]
[Black "MasterofMasters2006"]
[Result "1/2-1/2"]
[WhiteElo "2526"]
[BlackElo "2296"]
[TimeControl "180+1"]
[EndTime "9:20:30 PST"]
[Termination "Game drawn by repetition"]

1. e4 {[%clk 0:03:00.9]} 1... e5 {[%clk 0:02:58.9]} 2. Nf3 {[%clk 0:03:00.9]}
2... Nc6 {[%clk 0:02:48.9]} 3. Bc4 {[%clk 0:03:00.8]} 3... Bc5 {[%clk
0:02:48.2]} 4. c3 {[%clk 0:03:00.8]} 4... Nf6 {[%clk 0:02:46.6]} 5. d4 {[%clk
0:03:01.1]} 5... exd4 {[%clk 0:02:46.6]} 6. cxd4 {[%clk 0:03:02]} 6... Bb4+
{[%clk 0:02:47.1]} 7. Bd2 {[%clk 0:03:02.5]} 7... Bxd2+ {[%clk 0:02:42.3]} 8.
Nbxd2 {[%clk 0:03:02.8]} 8... Nxe4 {[%clk 0:02:37.2]} 9. Nxe4 {[%clk 0:02:59.1]}
9... d5 {[%clk 0:02:37.3]} 10. Bd3 {[%clk 0:02:59.4]} 10... dxe4 {[%clk
0:02:37.3]} 11. Bxe4 {[%clk 0:02:59.8]} 11... O-O {[%clk 0:02:37.5]} 12. Bxc6
{[%clk 0:02:58.2]} 12... bxc6 {[%clk 0:02:37]} 13. O-O {[%clk 0:02:58.1]} 13...
Bg4 {[%clk 0:02:36.2]} 14. Rc1 {[%clk 0:02:48.8]} 14... Bxf3 {[%clk 0:02:26.1]}
15. Qxf3 {[%clk 0:02:48.4]} 15... Qxd4 {[%clk 0:02:26.6]} 16. Rc2 {[%clk
0:02:37.9]} 16... Rab8 {[%clk 0:02:11.8]} 17. b3 {[%clk 0:02:35.7]} 17... Rb6
{[%clk 0:02:08.6]} 18. Rfc1 {[%clk 0:02:24.3]} 18... Rd8 {[%clk 0:02:02.8]} 19.
g3 {[%clk 0:02:24.6]} 19... h6 {[%clk 0:01:19.7]} 20. Kg2 {[%clk 0:02:18.8]}
20... Qd5 {[%clk 0:01:17.1]} 21. Qxd5 {[%clk 0:02:10.8]} 21... Rxd5 {[%clk
0:01:18]} 22. Rxc6 {[%clk 0:02:10.4]} 22... Rd2 {[%clk 0:01:11.6]} 23. a4 {[%clk
0:02:02.3]} 23... Rxb3 {[%clk 0:01:00]} 24. Rxc7 {[%clk 0:02:02.3]} 24... Rbb2
{[%clk 0:00:55.2]} 25. Rf1 {[%clk 0:02:02.3]} 25... Ra2 {[%clk 0:00:48.9]} 26.
Rxa7 {[%clk 0:02:01.7]} 26... Rd4 {[%clk 0:00:48.9]} 27. Rc1 {[%clk 0:01:54]}
27... Rdd2 {[%clk 0:00:37.8]} 28. Rc8+ {[%clk 0:01:53.5]} 28... Kh7 {[%clk
0:00:37.3]} 29. Rxf7 {[%clk 0:01:53.3]} 29... Rxa4 {[%clk 0:00:30.9]} 30. h3
{[%clk 0:01:41.7]} 30... Ra6 {[%clk 0:00:22.4]} 31. Rcc7 {[%clk 0:01:38.3]}
31... Rg6 {[%clk 0:00:20.2]} 32. g4 {[%clk 0:01:34.7]} 32... Rdd6 {[%clk
0:00:19.1]} 33. Kg3 {[%clk 0:01:32.6]} 33... Rdf6 {[%clk 0:00:18.6]} 34. Rfe7
{[%clk 0:01:29.3]} 34... Re6 {[%clk 0:00:18.5]} 35. Red7 {[%clk 0:01:29]} 35...
Rd6 {[%clk 0:00:18.8]} 36. h4 {[%clk 0:01:17.6]} 36... Rxd7 {[%clk 0:00:16.2]}
37. Rxd7 {[%clk 0:01:18.5]} 37... Ra6 {[%clk 0:00:16.2]} 38. f3 {[%clk
0:01:15.2]} 38... Ra4 {[%clk 0:00:15.8]} 39. Rd6 {[%clk 0:01:12.6]} 39... Rb4
{[%clk 0:00:15.8]} 40. Re6 {[%clk 0:00:53.3]} 40... Ra4 {[%clk 0:00:16]} 41. h5
{[%clk 0:00:51.9]} 41... Rc4 {[%clk 0:00:15.8]} 42. Kh4 {[%clk 0:00:50.4]} 42...
Rb4 {[%clk 0:00:16.1]} 43. Re4 {[%clk 0:00:46.7]} 43... Rb1 {[%clk 0:00:16.2]}
44. f4 {[%clk 0:00:39.4]} 44... Rh1+ {[%clk 0:00:13.2]} 45. Kg3 {[%clk
0:00:39.6]} 45... Rg1+ {[%clk 0:00:13.8]} 46. Kf3 {[%clk 0:00:36.8]} 46... Rf1+
{[%clk 0:00:13.6]} 47. Kg2 {[%clk 0:00:25.8]} 47... Ra1 {[%clk 0:00:13.8]} 48.
g5 {[%clk 0:00:25.5]} 48... hxg5 {[%clk 0:00:12.4]} 49. fxg5 {[%clk 0:00:25.9]}
49... Ra5 {[%clk 0:00:12.6]} 50. Rg4 {[%clk 0:00:23.5]} 50... Rb5 {[%clk
0:00:13]} 51. Kh3 {[%clk 0:00:21.7]} 51... Rb3+ {[%clk 0:00:12.1]} 52. Kh4
{[%clk 0:00:21.9]} 52... Rb1 {[%clk 0:00:12.6]} 53. Rf4 {[%clk 0:00:19.1]} 53...
Rh1+ {[%clk 0:00:12.5]} 54. Kg4 {[%clk 0:00:19.5]} 54... Rg1+ {[%clk 0:00:13.1]}
55. Kf5 {[%clk 0:00:19.7]} 55... Rh1 {[%clk 0:00:13.4]} 56. Kg4 {[%clk
0:00:08.7]} 56... Rg1+ {[%clk 0:00:13]} 57. Kh4 {[%clk 0:00:09.2]} 57... Rh1+
{[%clk 0:00:13.5]} 58. Kg4 {[%clk 0:00:09]} 1/2-1/2

[Event "Early-Titled-Tuesday-Blitz-February-20-2024"]
[Site "Chess.com"]
[Date "2024.02.20"]
[Round "7"]
[White "Atousa"]
[Black "Louis-Paulsen-Fan"]
[Result "1/2-1/2"]
[WhiteElo "2447"]
[BlackElo "2231"]
[TimeControl "180+1"]
[EndTime "9:20:31 PST"]
[Termination "Game drawn - insufficient material"]

1. d4 {[%clk 0:02:59.4]} 1... d5 {[%clk 0:02:59.6]} 2. Nf3 {[%clk 0:02:59.4]}
2... e6 {[%clk 0:03:00]} 3. g3 {[%clk 0:02:57.5]} 3... c5 {[%clk 0:02:59.7]} 4.
Bg2 {[%clk 0:02:56.5]} 4... Nc6 {[%clk 0:02:59.8]} 5. O-O {[%clk 0:02:55.5]}
5... Nf6 {[%clk 0:02:59.5]} 6. dxc5 {[%clk 0:02:47.4]} 6... Bxc5 {[%clk
0:02:59]} 7. a3 {[%clk 0:02:48.3]} 7... a5 {[%clk 0:02:53.5]} 8. c4 {[%clk
0:02:47.9]} 8... O-O {[%clk 0:02:52.1]} 9. Nc3 {[%clk 0:02:42.7]} 9... d4 {[%clk
0:02:40.8]} 10. Na4 {[%clk 0:02:35.2]} 10... Ba7 {[%clk 0:02:40.8]} 11. c5
{[%clk 0:02:29.4]} 11... e5 {[%clk 0:02:39.5]} 12. Bg5 {[%clk 0:02:29.3]} 12...
Be6 {[%clk 0:02:21.4]} 13. Bd2 {[%clk 0:02:11.5]} 13... Bd5 {[%clk 0:02:10.8]}
14. b4 {[%clk 0:02:08.6]} 14... axb4 {[%clk 0:02:10.3]} 15. axb4 {[%clk
0:02:08]} 15... e4 {[%clk 0:01:56]} 16. Nh4 {[%clk 0:01:58.4]} 16... e3 {[%clk
0:01:46.9]} 17. fxe3 {[%clk 0:01:56.7]} 17... Bxg2 {[%clk 0:01:46.2]} 18. Nxg2
{[%clk 0:01:53.8]} 18... dxe3 {[%clk 0:01:46.4]} 19. Nxe3 {[%clk 0:01:51.1]}
19... Ne4 {[%clk 0:01:45.4]} 20. Be1 {[%clk 0:01:44.4]} 20... Qg5 {[%clk
0:01:40.3]} 21. Nf5 {[%clk 0:01:37.3]} 21... Rad8 {[%clk 0:01:28.4]} 22. Qc2
{[%clk 0:01:37]} 22... Rfe8 {[%clk 0:01:28.3]} 23. Nb6 {[%clk 0:01:24.1]} 23...
Bxb6 {[%clk 0:01:21.4]} 24. cxb6 {[%clk 0:01:25]} 24... g6 {[%clk 0:01:17.4]}
25. b5 {[%clk 0:01:21]} 25... Nd4 {[%clk 0:00:50.8]} 26. Nxd4 {[%clk 0:01:20.7]}
26... Rxd4 {[%clk 0:00:51.7]} 27. Bf2 {[%clk 0:01:10.6]} 27... Nxf2 {[%clk
0:00:47.8]} 28. Rxf2 {[%clk 0:01:09.8]} 28... Qe3 {[%clk 0:00:43.6]} 29. Qc7
{[%clk 0:01:00.3]} 29... f5 {[%clk 0:00:18.4]} 30. Qxb7 {[%clk 0:00:57.1]} 30...
Rd2 {[%clk 0:00:18.1]} 31. Qf3 {[%clk 0:00:45.9]} 31... Qe5 {[%clk 0:00:15.3]}
32. Ra8 {[%clk 0:00:39.6]} 32... Qxb5 {[%clk 0:00:12.4]} 33. Rxe8+ {[%clk
0:00:36.4]} 33... Qxe8 {[%clk 0:00:13.3]} 34. b7 {[%clk 0:00:33.7]} 34... Rb2
{[%clk 0:00:12.5]} 35. Rf1 {[%clk 0:00:27]} 35... Qb5 {[%clk 0:00:12.2]} 36. e4
{[%clk 0:00:18]} 36... Qxb7 {[%clk 0:00:10.5]} 37. exf5 {[%clk 0:00:18.5]} 37...
Qxf3 {[%clk 0:00:10.6]} 38. Rxf3 {[%clk 0:00:19.4]} 38... gxf5 {[%clk
0:00:10.8]} 39. Rxf5 {[%clk 0:00:20.3]} 39... Kg7 {[%clk 0:00:11.3]} 40. Rf2
{[%clk 0:00:20]} 40... Rb1+ {[%clk 0:00:11.7]} 41. Kg2 {[%clk 0:00:20.5]} 41...
Kg6 {[%clk 0:00:12.3]} 42. Kh3 {[%clk 0:00:20.8]} 42... Ra1 {[%clk 0:00:12.1]}
43. Rd2 {[%clk 0:00:21]} 43... Rb1 {[%clk 0:00:12.1]} 44. Kg4 {[%clk 0:00:21]}
44... Rb4+ {[%clk 0:00:11.9]} 45. Kf3 {[%clk 0:00:21]} 45... Ra4 {[%clk
0:00:11.9]} 46. h4 {[%clk 0:00:20.3]} 46... h5 {[%clk 0:00:10.6]} 47. Rd6+
{[%clk 0:00:20.2]} 47... Kg7 {[%clk 0:00:09.8]} 48. Rd5 {[%clk 0:00:16.3]} 48...
Kg6 {[%clk 0:00:09.3]} 49. Rg5+ {[%clk 0:00:16.3]} 49... Kh6 {[%clk 0:00:09.7]}
50. Rf5 {[%clk 0:00:16.6]} 50... Ra3+ {[%clk 0:00:08.6]} 51. Kg2 {[%clk
0:00:16.6]} 51... Ra4 {[%clk 0:00:08.4]} 52. Kf3 {[%clk 0:00:16]} 52... Ra3+
{[%clk 0:00:08.7]} 53. Kf4 {[%clk 0:00:16.4]} 53... Ra4+ {[%clk 0:00:09.1]} 54.
Ke3 {[%clk 0:00:14.7]} 54... Ra3+ {[%clk 0:00:09.6]} 55. Kf2 {[%clk 0:00:15]}
55... Ra2+ {[%clk 0:00:10]} 56. Kg1 {[%clk 0:00:15.1]} 56... Ra1+ {[%clk
0:00:10.2]} 57. Kh2 {[%clk 0:00:15.5]} 57... Ra2+ {[%clk 0:00:10.5]} 58. Kh3
{[%clk 0:00:16]} 58... Ra3 {[%clk 0:00:10.8]} 59. Rg5 {[%clk 0:00:15.1]} 59...
Rb3 {[%clk 0:00:10.3]} 60. Kg2 {[%clk 0:00:15.2]} 60... Rb2+ {[%clk 0:00:10.3]}
61. Kf3 {[%clk 0:00:15.6]} 61... Rb3+ {[%clk 0:00:10.9]} 62. Ke4 {[%clk
0:00:16.1]} 62... Rb4+ {[%clk 0:00:11.3]} 63. Kd5 {[%clk 0:00:16.6]} 63... Rb5+
{[%clk 0:00:11.5]} 64. Ke4 {[%clk 0:00:16]} 64... Rxg5 {[%clk 0:00:11.5]} 65.
hxg5+ {[%clk 0:00:16.6]} 65... Kxg5 {[%clk 0:00:12.3]} 66. Kf3 {[%clk
0:00:17.4]} 66... h4 {[%clk 0:00:12.6]} 67. gxh4+ {[%clk 0:00:17.7]} 67... Kxh4
{[%clk 0:00:13]} 1/2-1/2

[Event "Early-Titled-Tuesday-Blitz-February-20-2024"]
[Site "Chess.com"]
[Date "2024.02.20"]
[Round "7"]
[White "viktorskliarov"]
[Black "BashirliSaadat"]
[Result "1-0"]
[WhiteElo "2577"]
[BlackElo "2350"]
[TimeControl "180+1"]
[EndTime "9:20:31 PST"]
[Termination "viktorskliarov won by resignation"]

1. e4 {[%clk 0:03:00.9]} 1... c6 {[%clk 0:02:58.9]} 2. d4 {[%clk 0:03:00.5]}
2... d5 {[%clk 0:02:59.2]} 3. e5 {[%clk 0:03:01.2]} 3... Bf5 {[%clk 0:02:57.7]}
4. Nf3 {[%clk 0:03:01.5]} 4... e6 {[%clk 0:02:56.4]} 5. Be2 {[%clk 0:03:02.1]}
5... Ne7 {[%clk 0:02:55.6]} 6. O-O {[%clk 0:03:02.1]} 6... Nd7 {[%clk
0:02:53.5]} 7. a4 {[%clk 0:03:02.3]} 7... Bg6 {[%clk 0:02:50.7]} 8. a5 {[%clk
0:03:02.1]} 8... Nf5 {[%clk 0:02:48.7]} 9. a6 {[%clk 0:02:58.6]} 9... b6 {[%clk
0:02:48.2]} 10. Na3 {[%clk 0:02:59.1]} 10... Nh4 {[%clk 0:02:45.1]} 11. c4
{[%clk 0:02:55.9]} 11... Nxf3+ {[%clk 0:02:44.2]} 12. Bxf3 {[%clk 0:02:55.7]}
12... Bxa3 {[%clk 0:02:42.2]} 13. Rxa3 {[%clk 0:02:55.1]} 13... O-O {[%clk
0:02:42.7]} 14. b3 {[%clk 0:02:35.5]} 14... Qe7 {[%clk 0:02:39.8]} 15. Re1
{[%clk 0:02:26.8]} 15... Rab8 {[%clk 0:02:32.7]} 16. Ra2 {[%clk 0:02:21.8]}
16... Rfc8 {[%clk 0:02:31.1]} 17. Ba3 {[%clk 0:02:18.9]} 17... Qe8 {[%clk
0:02:24.7]} 18. Bd6 {[%clk 0:02:18.2]} 18... Ra8 {[%clk 0:02:24.8]} 19. Qd2
{[%clk 0:02:07.1]} 19... b5 {[%clk 0:02:23.2]} 20. c5 {[%clk 0:01:56.7]} 20...
Rd8 {[%clk 0:02:17.9]} 21. h4 {[%clk 0:01:46.8]} 21... h6 {[%clk 0:02:16.7]} 22.
h5 {[%clk 0:01:27.3]} 22... Bh7 {[%clk 0:02:16]} 23. g4 {[%clk 0:01:27.9]} 23...
f6 {[%clk 0:02:13]} 24. exf6 {[%clk 0:00:42.2]} 24... Nxf6 {[%clk 0:02:11.6]}
25. Qf4 {[%clk 0:00:42.5]} 25... Ne4 {[%clk 0:02:08.7]} 26. Rae2 {[%clk
0:00:23.8]} 26... Qf7 {[%clk 0:01:59]} 27. Qxf7+ {[%clk 0:00:12.1]} 27... Kxf7
{[%clk 0:01:59]} 28. Be5 {[%clk 0:00:12.8]} 28... Ng5 {[%clk 0:01:55.7]} 29. Bg2
{[%clk 0:00:12.9]} 29... Be4 {[%clk 0:01:38.5]} 30. Bxe4 {[%clk 0:00:11.7]}
30... dxe4 {[%clk 0:01:37.6]} 31. Rxe4 {[%clk 0:00:11.8]} 31... Nxe4 {[%clk
0:01:36.4]} 32. Rxe4 {[%clk 0:00:12.7]} 32... Rd5 {[%clk 0:01:34.3]} 33. Rf4+
{[%clk 0:00:11.3]} 33... Kg8 {[%clk 0:01:33.3]} 34. Bd6 {[%clk 0:00:10.3]} 34...
Rd8 {[%clk 0:01:30.4]} 35. Kf1 {[%clk 0:00:07.4]} 35... b4 {[%clk 0:01:28]} 36.
Ke2 {[%clk 0:00:07.1]} 36... Re8 {[%clk 0:01:03.5]} 37. Ke3 {[%clk 0:00:07]}
37... Rg5 {[%clk 0:01:03.5]} 38. Re4 {[%clk 0:00:06.2]} 38... Kf7 {[%clk
0:01:01.8]} 39. Rf4+ {[%clk 0:00:06.5]} 39... Kg8 {[%clk 0:01:01.3]} 40. f3
{[%clk 0:00:06.8]} 40... g6 {[%clk 0:01:00.7]} 41. hxg6 {[%clk 0:00:06.6]} 41...
Rxg6 {[%clk 0:01:00.9]} 42. Kd3 {[%clk 0:00:07.1]} 42... Rg7 {[%clk 0:00:57.3]}
43. Kc4 {[%clk 0:00:07.4]} 43... Rf7 {[%clk 0:00:57.1]} 44. Rxf7 {[%clk
0:00:07.6]} 44... Kxf7 {[%clk 0:00:56.6]} 45. Kxb4 {[%clk 0:00:08.3]} 45... Kf6
{[%clk 0:00:54.6]} 46. Kc4 {[%clk 0:00:06.6]} 46... Kg5 {[%clk 0:00:52.7]} 47.
b4 {[%clk 0:00:07]} 47... h5 {[%clk 0:00:43.9]} 48. gxh5 {[%clk 0:00:06.9]}
48... Kxh5 {[%clk 0:00:44.6]} 49. b5 {[%clk 0:00:07.5]} 49... cxb5+ {[%clk
0:00:36.9]} 50. Kxb5 {[%clk 0:00:07.9]} 50... Kg5 {[%clk 0:00:37.2]} 51. Kc6
{[%clk 0:00:07.7]} 51... Kf6 {[%clk 0:00:35.5]} 52. Kd7 {[%clk 0:00:08]} 52...
Rg8 {[%clk 0:00:33.8]} 53. c6 {[%clk 0:00:08.3]} 53... Rg7+ {[%clk 0:00:33.6]}
54. Kd8 {[%clk 0:00:08]} 54... Rg8+ {[%clk 0:00:33.8]} 55. Kc7 {[%clk
0:00:07.9]} 55... Rg7+ {[%clk 0:00:34]} 56. Kb8 {[%clk 0:00:06.6]} 56... Rg8+
{[%clk 0:00:27]} 57. Kxa7 {[%clk 0:00:05.9]} 57... e5 {[%clk 0:00:27.1]} 58.
dxe5+ {[%clk 0:00:04]} 58... Ke6 {[%clk 0:00:27.9]} 59. Kb7 {[%clk 0:00:04.5]}
59... Rg7+ {[%clk 0:00:27.2]} 60. c7 {[%clk 0:00:05.1]} 60... Rf7 {[%clk
0:00:25.7]} 61. a7 {[%clk 0:00:05.7]} 1-0